[Event "*** Titled Tuesday Blitz"]
[Site "Chess.com"]
[Date "2020.04.07"]
[Round "6"]
[White "jamengrand"]
[Black "Obito24"]
[Result "0-1"]
[WhiteElo "2176"]
[BlackElo "2738"]
[TimeControl "180+1"]
[EndTime "14:08:51 PDT"]
[Termination "Obito24 won by resignation"]

1. e4 {[%clk 0:03:00.9]} 1... c5 {[%clk 0:02:58]} 2. Nf3 {[%clk 0:03:00.8]} 2...
d6 {[%clk 0:02:58.1]} 3. d4 {[%clk 0:03:00.9]} 3... cxd4 {[%clk 0:02:58.5]} 4.
Nxd4 {[%clk 0:03:01.3]} 4... Nf6 {[%clk 0:02:58.8]} 5. Nc3 {[%clk 0:03:01.5]}
5... a6 {[%clk 0:02:58.8]} 6. Bg5 {[%clk 0:03:01.5]} 6... Nbd7 {[%clk
0:02:56.5]} 7. Qe2 {[%clk 0:03:01.5]} 7... e6 {[%clk 0:02:54.4]} 8. O-O-O {[%clk
0:03:01.3]} 8... h6 {[%clk 0:02:53.9]} 9. Bh4 {[%clk 0:03:00.2]} 9... b5 {[%clk
0:02:53.2]} 10. f4 {[%clk 0:02:58.8]} 10... Qc7 {[%clk 0:02:53.3]} 11. a3 {[%clk
0:02:58.1]} 11... Rb8 {[%clk 0:02:39.3]} 12. g4 {[%clk 0:02:52.7]} 12... b4
{[%clk 0:02:38.3]} 13. axb4 {[%clk 0:02:52.9]} 13... Rxb4 {[%clk 0:02:38.8]} 14.
Bg2 {[%clk 0:02:51.8]} 14... Be7 {[%clk 0:02:32.1]} 15. Bg3 {[%clk 0:02:39.2]}
15... Qb6 {[%clk 0:02:13.1]} 16. Bf2 {[%clk 0:02:38.8]} 16... Rxb2 {[%clk
0:00:41.8]} 17. Nb3 {[%clk 0:02:37.4]} 17... Qxb3 {[%clk 0:00:41]} 18. cxb3
{[%clk 0:02:34.7]} 18... Rxe2 {[%clk 0:00:41.5]} 19. Nxe2 {[%clk 0:02:34.6]}
19... Nxg4 {[%clk 0:00:41.8]} 20. Ba7 {[%clk 0:02:31]} 20... Bb7 {[%clk
0:00:37.3]} 21. Kb1 {[%clk 0:02:06.4]} 21... Nc5 {[%clk 0:00:24.9]} 22. Bxc5
{[%clk 0:02:01]} 22... dxc5 {[%clk 0:00:25.2]} 23. Rc1 {[%clk 0:01:53.2]} 23...
Nf2 {[%clk 0:00:13.3]} 24. Rhg1 {[%clk 0:01:41.9]} 24... Nxe4 {[%clk 0:00:10.7]}
25. Ng3 {[%clk 0:01:42]} 25... Nxg3 {[%clk 0:00:03]} 26. Bxb7 {[%clk 0:01:41.2]}
26... Ne2 {[%clk 0:00:02.2]} 27. Rxg7 {[%clk 0:01:31.6]} 27... Nxc1 {[%clk
0:00:02.2]} 28. Kxc1 {[%clk 0:01:27.7]} 28... Bf6 {[%clk 0:00:02.6]} 29. Rg3
{[%clk 0:01:24.9]} 29... a5 {[%clk 0:00:03.5]} 30. Rg2 {[%clk 0:00:56.8]} 30...
Ke7 {[%clk 0:00:03.8]} 31. Ra2 {[%clk 0:00:56.2]} 31... Rb8 {[%clk 0:00:04.3]}
32. Bc6 {[%clk 0:00:47.7]} 32... Rxb3 {[%clk 0:00:04.2]} 33. Rxa5 {[%clk
0:00:47.6]} 33... Rc3+ {[%clk 0:00:04.6]} 34. Kd2 {[%clk 0:00:45.7]} 34... Rh3
{[%clk 0:00:02.4]} 35. Ra7+ {[%clk 0:00:45.8]} 35... Kf8 {[%clk 0:00:02.8]} 36.
Ra8+ {[%clk 0:00:44.2]} 36... Kg7 {[%clk 0:00:03.2]} 37. Ra7 {[%clk 0:00:44.2]}
37... Rxh2+ {[%clk 0:00:02.4]} 38. Ke3 {[%clk 0:00:42.3]} 38... Kf8 {[%clk
0:00:03.3]} 39. Ra8+ {[%clk 0:00:40.8]} 39... Kg7 {[%clk 0:00:03.9]} 40. Ra7
{[%clk 0:00:41.1]} 40... Bd4+ {[%clk 0:00:04.4]} 41. Kf3 {[%clk 0:00:41]} 41...
c4 {[%clk 0:00:04.9]} 42. Rd7 {[%clk 0:00:39.7]} 42... Rh3+ {[%clk 0:00:02.6]}
43. Kg2 {[%clk 0:00:37.8]} 43... Rd3 {[%clk 0:00:03.1]} 44. Bb5 {[%clk
0:00:36.6]} 44... Rd2+ {[%clk 0:00:03.6]} 45. Kh3 {[%clk 0:00:34.2]} 45... c3
{[%clk 0:00:04.5]} 46. Ba4 {[%clk 0:00:30.3]} 46... Be3 {[%clk 0:00:02.7]} 47.
Rxd2 {[%clk 0:00:27.6]} 47... Bxd2 {[%clk 0:00:02.5]} 48. Kg4 {[%clk 0:00:27.5]}
48... Kf6 {[%clk 0:00:03]} 49. Bb3 {[%clk 0:00:26.5]} 49... h5+ {[%clk
0:00:03.2]} 50. Kg3 {[%clk 0:00:24.8]} 50... h4+ {[%clk 0:00:03.1]} 51. Kg4
{[%clk 0:00:22.8]} 51... h3 {[%clk 0:00:03.2]} 52. Kxh3 {[%clk 0:00:20.3]} 52...
Bxf4 {[%clk 0:00:03.8]} 53. Kg4 {[%clk 0:00:18.2]} 53... Ke5 {[%clk 0:00:04.4]}
54. Bxe6 {[%clk 0:00:15.7]} 54... fxe6 {[%clk 0:00:03.9]} 0-1

[Event "*** Titled Tuesday Blitz"]
[Site "Chess.com"]
[Date "2020.04.07"]
[Round "6"]
[White "RD4ever"]
[Black "chessdjw"]
[Result "1-0"]
[WhiteElo "2852"]
[BlackElo "2645"]
[TimeControl "180+1"]
[EndTime "14:08:53 PDT"]
[Termination "RD4ever won by resignation"]

1. e4 {[%clk 0:03:00.9]} 1... c5 {[%clk 0:02:58.7]} 2. Nf3 {[%clk 0:03:00.9]}
2... d6 {[%clk 0:02:57.1]} 3. d4 {[%clk 0:03:00.9]} 3... cxd4 {[%clk 0:02:57.6]}
4. Nxd4 {[%clk 0:03:01.8]} 4... Nf6 {[%clk 0:02:58.1]} 5. Nc3 {[%clk 0:03:01.9]}
5... a6 {[%clk 0:02:58.4]} 6. Bd3 {[%clk 0:03:01.6]} 6... g6 {[%clk 0:02:54.8]}
7. Be3 {[%clk 0:03:00.8]} 7... Bg7 {[%clk 0:02:55.3]} 8. f3 {[%clk 0:03:01.3]}
8... Nc6 {[%clk 0:02:53.7]} 9. Qd2 {[%clk 0:03:01.3]} 9... O-O {[%clk
0:02:52.1]} 10. O-O-O {[%clk 0:03:00.8]} 10... Bd7 {[%clk 0:02:51.7]} 11. g4
{[%clk 0:02:35]} 11... Rc8 {[%clk 0:02:48.6]} 12. Nxc6 {[%clk 0:02:26.9]} 12...
Bxc6 {[%clk 0:02:40.2]} 13. Kb1 {[%clk 0:02:25]} 13... d5 {[%clk 0:02:30.4]} 14.
g5 {[%clk 0:01:49.1]} 14... d4 {[%clk 0:02:29.3]} 15. gxf6 {[%clk 0:01:42.5]}
15... dxc3 {[%clk 0:02:28.9]} 16. Qxc3 {[%clk 0:01:29.9]} 16... Bxf6 {[%clk
0:02:21.9]} 17. Qb3 {[%clk 0:01:28]} 17... Qa5 {[%clk 0:02:15]} 18. h4 {[%clk
0:01:14]} 18... Ba4 {[%clk 0:02:07.9]} 19. Qb6 {[%clk 0:01:13.8]} 19... Qxb6
{[%clk 0:01:51.1]} 20. Bxb6 {[%clk 0:01:14.7]} 20... Rc6 {[%clk 0:01:49.5]} 21.
Be3 {[%clk 0:01:08.3]} 21... Rcc8 {[%clk 0:01:18.7]} 22. h5 {[%clk 0:01:08.4]}
22... Bc6 {[%clk 0:01:15.4]} 23. hxg6 {[%clk 0:01:07]} 23... hxg6 {[%clk
0:01:15]} 24. Rd2 {[%clk 0:01:05.6]} 24... b5 {[%clk 0:01:11.7]} 25. Rdh2 {[%clk
0:01:04.3]} 25... Rfd8 {[%clk 0:01:12.3]} 26. Bf4 {[%clk 0:00:52.5]} 26... e5
{[%clk 0:01:08.5]} 27. Be3 {[%clk 0:00:50.9]} 27... Bd7 {[%clk 0:01:02.3]} 28.
Bb6 {[%clk 0:00:41.8]} 28... Re8 {[%clk 0:01:00.5]} 29. Be3 {[%clk 0:00:42.2]}
29... Be6 {[%clk 0:00:59.9]} 30. b3 {[%clk 0:00:40.8]} 30... Kf8 {[%clk
0:00:55.3]} 31. Rd2 {[%clk 0:00:33.3]} 31... Ke7 {[%clk 0:00:55]} 32. Be2 {[%clk
0:00:33.1]} 32... Red8 {[%clk 0:00:54.2]} 33. Rhd1 {[%clk 0:00:31.6]} 33... Rxd2
{[%clk 0:00:54.5]} 34. Rxd2 {[%clk 0:00:32.5]} 34... Bh4 {[%clk 0:00:53.3]} 35.
Rd1 {[%clk 0:00:23.5]} 35... Bg3 {[%clk 0:00:49.7]} 36. b4 {[%clk 0:00:23.7]}
36... Kf6 {[%clk 0:00:46.3]} 37. Rd6 {[%clk 0:00:21.9]} 37... Be1 {[%clk
0:00:40.8]} 38. a3 {[%clk 0:00:20.3]} 38... Ra8 {[%clk 0:00:35.4]} 39. Bc5
{[%clk 0:00:16.4]} 39... Bc3 {[%clk 0:00:30.2]} 40. Rd3 {[%clk 0:00:14]} 40...
Bc4 {[%clk 0:00:30.6]} 41. Rd6+ {[%clk 0:00:13.9]} 41... Be6 {[%clk 0:00:29.2]}
42. Rc6 {[%clk 0:00:13]} 42... Rh8 {[%clk 0:00:26.2]} 43. Be7+ {[%clk
0:00:11.5]} 43... Kxe7 {[%clk 0:00:26.2]} 44. Rxc3 {[%clk 0:00:12.4]} 44... Rh2
{[%clk 0:00:26]} 45. Bd1 {[%clk 0:00:09.5]} 45... Rf2 {[%clk 0:00:23.8]} 46. Rc6
{[%clk 0:00:08.8]} 46... Bc4 {[%clk 0:00:21.1]} 47. Kc1 {[%clk 0:00:09]} 47...
g5 {[%clk 0:00:19.7]} 48. Rxa6 {[%clk 0:00:08.5]} 48... f6 {[%clk 0:00:18.3]}
49. Ra7+ {[%clk 0:00:08.7]} 49... Ke6 {[%clk 0:00:18.3]} 50. a4 {[%clk 0:00:09]}
50... bxa4 {[%clk 0:00:16.5]} 51. Rxa4 {[%clk 0:00:09.5]} 51... Kf7 {[%clk
0:00:13.5]} 52. Ra3 {[%clk 0:00:09.3]} 52... Kg7 {[%clk 0:00:13.6]} 53. Rc3
{[%clk 0:00:09.3]} 53... Bf1 {[%clk 0:00:12.9]} 54. Rc7+ {[%clk 0:00:08.9]}
54... Kg6 {[%clk 0:00:13.1]} 55. c4 {[%clk 0:00:09]} 55... g4 {[%clk 0:00:12.1]}
56. fxg4 {[%clk 0:00:08.9]} 56... Kg5 {[%clk 0:00:12.7]} 57. b5 {[%clk
0:00:08.2]} 57... Kf4 {[%clk 0:00:12.5]} 58. b6 {[%clk 0:00:08.5]} 58... Be2
{[%clk 0:00:06.8]} 59. Bxe2 {[%clk 0:00:08]} 59... Rxe2 {[%clk 0:00:07.1]} 60.
b7 {[%clk 0:00:08.5]} 60... Rxe4 {[%clk 0:00:07.5]} 61. b8=Q {[%clk 0:00:08.5]}
61... Rd4 {[%clk 0:00:08.4]} 62. Qb5 {[%clk 0:00:07.9]} 1-0

[Event "*** Titled Tuesday Blitz"]
[Site "Chess.com"]
[Date "2020.04.07"]
[Round "6"]
[White "DDTerziev04"]
[Black "Budisavljevic"]
[Result "0-1"]
[WhiteElo "2241"]
[BlackElo "2466"]
[TimeControl "180+1"]
[EndTime "14:08:55 PDT"]
[Termination "Budisavljevic won by resignation"]

1. e4 {[%clk 0:03:00.9]} 1... c5 {[%clk 0:02:57]} 2. Nf3 {[%clk 0:03:00.7]} 2...
e6 {[%clk 0:02:56.1]} 3. g3 {[%clk 0:03:00.1]} 3... d5 {[%clk 0:02:54.6]} 4.
exd5 {[%clk 0:03:00]} 4... exd5 {[%clk 0:02:54.7]} 5. d4 {[%clk 0:03:00.3]} 5...
Nf6 {[%clk 0:02:52.4]} 6. Bg2 {[%clk 0:03:00.2]} 6... Be7 {[%clk 0:02:52.2]} 7.
O-O {[%clk 0:03:00.1]} 7... O-O {[%clk 0:02:52]} 8. Re1 {[%clk 0:02:56.9]} 8...
Nc6 {[%clk 0:02:41.2]} 9. c3 {[%clk 0:02:56.3]} 9... Bg4 {[%clk 0:02:40]} 10.
Be3 {[%clk 0:02:55.4]} 10... cxd4 {[%clk 0:02:37.9]} 11. Bxd4 {[%clk 0:02:54.6]}
11... Ne4 {[%clk 0:02:37.4]} 12. Nbd2 {[%clk 0:02:51.1]} 12... Nxd4 {[%clk
0:02:17.2]} 13. cxd4 {[%clk 0:02:45.8]} 13... Ng5 {[%clk 0:01:56.7]} 14. Qb3
{[%clk 0:02:37.5]} 14... Rb8 {[%clk 0:01:38.9]} 15. Ne5 {[%clk 0:02:28.9]} 15...
Nh3+ {[%clk 0:01:23]} 16. Kf1 {[%clk 0:02:27.5]} 16... Be6 {[%clk 0:01:21.1]}
17. Ndf3 {[%clk 0:02:25.7]} 17... Re8 {[%clk 0:01:10.3]} 18. Ng1 {[%clk
0:02:21.7]} 18... Nxg1 {[%clk 0:00:58.1]} 19. Kxg1 {[%clk 0:02:21.4]} 19... Bf6
{[%clk 0:00:54.9]} 20. f4 {[%clk 0:02:20.2]} 20... Qb6 {[%clk 0:00:49.5]} 21.
Qxb6 {[%clk 0:02:19.4]} 21... axb6 {[%clk 0:00:50.4]} 22. Rac1 {[%clk
0:02:18.2]} 22... Rbc8 {[%clk 0:00:50.4]} 23. h3 {[%clk 0:02:12.9]} 23... h5
{[%clk 0:00:41.2]} 24. Kh2 {[%clk 0:02:09.5]} 24... Kf8 {[%clk 0:00:37.8]} 25.
Bf3 {[%clk 0:02:07]} 25... g6 {[%clk 0:00:37.2]} 26. g4 {[%clk 0:02:05.9]} 26...
hxg4 {[%clk 0:00:36.7]} 27. hxg4 {[%clk 0:02:05.8]} 27... Kg7 {[%clk 0:00:33.4]}
28. Kg3 {[%clk 0:02:03.6]} 28... Rh8 {[%clk 0:00:31.6]} 29. Rh1 {[%clk
0:02:01.6]} 29... Bh4+ {[%clk 0:00:23]} 30. Kg2 {[%clk 0:01:57.8]} 30... Be7
{[%clk 0:00:22.3]} 31. a3 {[%clk 0:01:55.2]} 31... Rxh1 {[%clk 0:00:16.2]} 32.
Rxh1 {[%clk 0:01:54.2]} 32... Rc2+ {[%clk 0:00:15.4]} 33. Kg3 {[%clk 0:01:54.1]}
33... Rxb2 {[%clk 0:00:15.4]} 34. Rc1 {[%clk 0:01:50.3]} 34... Rb3 {[%clk
0:00:15.3]} 35. Rc7 {[%clk 0:01:48.2]} 35... Bxa3 {[%clk 0:00:15.4]} 36. Rxb7
{[%clk 0:01:47.1]} 36... Bb2 {[%clk 0:00:15.4]} 37. f5 {[%clk 0:01:36.7]} 37...
Bxd4 {[%clk 0:00:14.3]} 38. fxe6 {[%clk 0:01:36.1]} 38... Bxe5+ {[%clk
0:00:14.1]} 39. Kg2 {[%clk 0:01:36.4]} 39... Bd6 {[%clk 0:00:08.7]} 40. Rxf7+
{[%clk 0:01:35.4]} 40... Kh6 {[%clk 0:00:08.3]} 41. Bxd5 {[%clk 0:01:34.4]}
41... Re3 {[%clk 0:00:06.5]} 42. Rd7 {[%clk 0:01:25.8]} 42... Bc5 {[%clk
0:00:06.1]} 43. Bc4 {[%clk 0:01:17.8]} 43... Kg5 {[%clk 0:00:07]} 44. Rd3 {[%clk
0:01:07.3]} 44... Re5 {[%clk 0:00:06.1]} 45. Rd5 {[%clk 0:01:02.9]} 45... Rxd5
{[%clk 0:00:04.7]} 46. Bxd5 {[%clk 0:01:03]} 46... Kxg4 {[%clk 0:00:05.6]} 47.
Bc4 {[%clk 0:01:01.6]} 47... Kg5 {[%clk 0:00:05.8]} 48. Kg3 {[%clk 0:00:58.8]}
48... Bd6+ {[%clk 0:00:04.5]} 49. Kf3 {[%clk 0:00:58.7]} 49... Kf5 {[%clk
0:00:04.7]} 50. Bd3+ {[%clk 0:00:56.8]} 50... Kf6 {[%clk 0:00:04.7]} 51. Kg4
{[%clk 0:00:53.1]} 51... Be7 {[%clk 0:00:05.6]} 52. Bc4 {[%clk 0:00:48.3]} 52...
g5 {[%clk 0:00:06.5]} 53. Bb3 {[%clk 0:00:47.3]} 53... Ke5 {[%clk 0:00:07.4]}
54. Ba2 {[%clk 0:00:46.5]} 54... Kd4 {[%clk 0:00:08.3]} 55. Kf5 {[%clk
0:00:46.4]} 55... b5 {[%clk 0:00:07.6]} 56. Bb3 {[%clk 0:00:28]} 56... b4 {[%clk
0:00:07]} 57. Kg6 {[%clk 0:00:26.6]} 57... g4 {[%clk 0:00:06]} 58. Kf7 {[%clk
0:00:24.3]} 58... Bc5 {[%clk 0:00:06]} 59. Bd1 {[%clk 0:00:20.6]} 59... g3
{[%clk 0:00:05.9]} 60. Bf3 {[%clk 0:00:20.6]} 60... b3 {[%clk 0:00:06]} 0-1

[Event "*** Titled Tuesday Blitz"]
[Site "Chess.com"]
[Date "2020.04.07"]
[Round "6"]
[White "Bambi2006"]
[Black "Ali_rastbod"]
[Result "1-0"]
[WhiteElo "2507"]
[BlackElo "2604"]
[TimeControl "180+1"]
[EndTime "14:09:01 PDT"]
[Termination "Bambi2006 won on time"]

1. d4 {[%clk 0:02:49.5]} 1... Nf6 {[%clk 0:02:58.3]} 2. c4 {[%clk 0:02:45.7]}
2... e6 {[%clk 0:02:58.2]} 3. g3 {[%clk 0:02:44]} 3... c5 {[%clk 0:02:57.3]} 4.
Nf3 {[%clk 0:02:35.2]} 4... b6 {[%clk 0:02:27.5]} 5. d5 {[%clk 0:02:29.1]} 5...
exd5 {[%clk 0:02:24.5]} 6. cxd5 {[%clk 0:02:26.1]} 6... Bb7 {[%clk 0:02:22.8]}
7. Nc3 {[%clk 0:02:22.8]} 7... d6 {[%clk 0:02:22.3]} 8. Bg2 {[%clk 0:02:19.3]}
8... g6 {[%clk 0:02:21.9]} 9. O-O {[%clk 0:02:15.9]} 9... Bg7 {[%clk 0:02:21.7]}
10. Re1 {[%clk 0:02:14.9]} 10... O-O {[%clk 0:02:21.3]} 11. e4 {[%clk
0:02:12.6]} 11... Nbd7 {[%clk 0:02:05.1]} 12. Bf4 {[%clk 0:02:12]} 12... Ne8
{[%clk 0:02:00.9]} 13. Qd2 {[%clk 0:01:54.6]} 13... Ne5 {[%clk 0:02:00.7]} 14.
a3 {[%clk 0:01:49.8]} 14... a6 {[%clk 0:01:56.8]} 15. Bh6 {[%clk 0:01:46.2]}
15... b5 {[%clk 0:01:43.9]} 16. Rad1 {[%clk 0:01:39.1]} 16... Rc8 {[%clk
0:01:41.7]} 17. Nxe5 {[%clk 0:01:31.2]} 17... Bxh6 {[%clk 0:01:27.7]} 18. Qxh6
{[%clk 0:01:32.1]} 18... dxe5 {[%clk 0:01:26.4]} 19. f4 {[%clk 0:01:14.2]} 19...
Qd6 {[%clk 0:01:19.1]} 20. fxe5 {[%clk 0:01:11.3]} 20... Qxe5 {[%clk 0:01:19]}
21. Qf4 {[%clk 0:01:10.7]} 21... f6 {[%clk 0:01:12.7]} 22. d6 {[%clk 0:01:04.3]}
22... Rd8 {[%clk 0:01:12.8]} 23. d7 {[%clk 0:00:50.5]} 23... Nc7 {[%clk
0:01:12.8]} 24. Qxe5 {[%clk 0:00:48.2]} 24... fxe5 {[%clk 0:01:12.7]} 25. Bh3
{[%clk 0:00:47.2]} 25... Rf6 {[%clk 0:01:08.4]} 26. Nd5 {[%clk 0:00:45.3]} 26...
Bxd5 {[%clk 0:00:47.5]} 27. exd5 {[%clk 0:00:46.2]} 27... Rd6 {[%clk 0:00:47.3]}
28. Rxe5 {[%clk 0:00:42.7]} 28... Kg7 {[%clk 0:00:46.2]} 29. Rf1 {[%clk
0:00:38.7]} 29... Rxd5 {[%clk 0:00:38.9]} 30. Re7+ {[%clk 0:00:35.8]} 30... Kh6
{[%clk 0:00:39.3]} 31. Bg4 {[%clk 0:00:28]} 31... Kg5 {[%clk 0:00:24.7]} 32.
Rxh7 {[%clk 0:00:19.8]} 32... c4 {[%clk 0:00:13.6]} 33. Rf4 {[%clk 0:00:13.6]}
33... Rf5 {[%clk 0:00:13.8]} 34. Bxf5 {[%clk 0:00:08.9]} 34... gxf5 {[%clk
0:00:14.6]} 35. Rf7 {[%clk 0:00:06.6]} 35... Kg6 {[%clk 0:00:13.9]} 36. R7xf5
{[%clk 0:00:07.5]} 36... Rxd7 {[%clk 0:00:13.3]} 37. h4 {[%clk 0:00:08.4]} 37...
Rd2 {[%clk 0:00:11.6]} 38. Rf2 {[%clk 0:00:08]} 38... Rd1+ {[%clk 0:00:10.7]}
39. Kg2 {[%clk 0:00:08.3]} 39... Nd5 {[%clk 0:00:11.2]} 40. h5+ {[%clk
0:00:08.5]} 40... Kh6 {[%clk 0:00:11.7]} 41. Kh3 {[%clk 0:00:08.8]} 41... Rh1+
{[%clk 0:00:09.7]} 42. Kg2 {[%clk 0:00:09.3]} 42... Rd1 {[%clk 0:00:10.2]} 43.
Kf3 {[%clk 0:00:07.5]} 43... Ne7 {[%clk 0:00:07]} 44. Rc5 {[%clk 0:00:06.4]}
44... Rd6 {[%clk 0:00:05.7]} 45. g4 {[%clk 0:00:06.9]} 45... Nc6 {[%clk
0:00:04.9]} 46. Kg3 {[%clk 0:00:07.3]} 46... Rd3+ {[%clk 0:00:04.5]} 47. Kh4
{[%clk 0:00:07.4]} 47... Nd4 {[%clk 0:00:04.1]} 48. g5+ {[%clk 0:00:08.3]} 48...
Kg7 {[%clk 0:00:04.5]} 49. Rc7+ {[%clk 0:00:08.6]} 49... Kg8 {[%clk 0:00:05.1]}
50. g6 {[%clk 0:00:08.9]} 50... Nf3+ {[%clk 0:00:05.4]} 51. Kg4 {[%clk
0:00:08.3]} 51... Ne5+ {[%clk 0:00:05.8]} 52. Kf5 {[%clk 0:00:08.8]} 52... Nd7
{[%clk 0:00:05.6]} 53. h6 {[%clk 0:00:09]} 53... Rd6 {[%clk 0:00:04.3]} 54. Rc8+
{[%clk 0:00:09.2]} 54... Nf8 {[%clk 0:00:04]} 55. g7 {[%clk 0:00:09.7]} 1-0

[Event "*** Titled Tuesday Blitz"]
[Site "Chess.com"]
[Date "2020.04.07"]
[Round "6"]
[White "almo64"]
[Black "GeorgMeier"]
[Result "0-1"]
[WhiteElo "2675"]
[BlackElo "3000"]
[TimeControl "180+1"]
[EndTime "14:09:04 PDT"]
[Termination "GeorgMeier won on time"]

1. e4 {[%clk 0:03:00.9]} 1... e6 {[%clk 0:02:59.6]} 2. d4 {[%clk 0:03:00.9]}
2... d5 {[%clk 0:03:00]} 3. Nc3 {[%clk 0:03:01.3]} 3... dxe4 {[%clk 0:02:57.5]}
4. Nxe4 {[%clk 0:03:01]} 4... Nd7 {[%clk 0:02:55.7]} 5. Bd3 {[%clk 0:02:53.2]}
5... Ngf6 {[%clk 0:02:55.6]} 6. c3 {[%clk 0:02:53.4]} 6... Nxe4 {[%clk 0:02:53]}
7. Bxe4 {[%clk 0:02:52.5]} 7... Nf6 {[%clk 0:02:53.5]} 8. Bc2 {[%clk 0:02:50.6]}
8... c5 {[%clk 0:02:53.3]} 9. Nf3 {[%clk 0:02:50.6]} 9... cxd4 {[%clk
0:02:52.2]} 10. Qxd4 {[%clk 0:02:48.8]} 10... Qxd4 {[%clk 0:02:51.7]} 11. Nxd4
{[%clk 0:02:48.9]} 11... Bd7 {[%clk 0:02:44.6]} 12. f3 {[%clk 0:02:35.2]} 12...
Bc5 {[%clk 0:02:42]} 13. Be3 {[%clk 0:02:34.7]} 13... Rc8 {[%clk 0:02:38.2]} 14.
Bf2 {[%clk 0:02:07.2]} 14... Ke7 {[%clk 0:02:34]} 15. Rd1 {[%clk 0:02:05]} 15...
Rhd8 {[%clk 0:02:30.6]} 16. O-O {[%clk 0:02:05]} 16... Bb6 {[%clk 0:01:51.2]}
17. Rfe1 {[%clk 0:02:01.7]} 17... Kf8 {[%clk 0:01:50.3]} 18. a4 {[%clk
0:02:00.8]} 18... Be8 {[%clk 0:01:49]} 19. Bb3 {[%clk 0:01:58.1]} 19... h6
{[%clk 0:01:43.5]} 20. Ra1 {[%clk 0:01:39.2]} 20... Bc5 {[%clk 0:01:19.2]} 21.
a5 {[%clk 0:01:34.7]} 21... a6 {[%clk 0:01:19.3]} 22. Re5 {[%clk 0:01:26.6]}
22... Bd6 {[%clk 0:01:17.2]} 23. Rxe6 {[%clk 0:01:26.7]} 23... fxe6 {[%clk
0:01:06.8]} 24. Nxe6+ {[%clk 0:01:26.6]} 24... Ke7 {[%clk 0:01:03.4]} 25. Re1
{[%clk 0:01:26.2]} 25... Kd7 {[%clk 0:00:34.8]} 26. Bb6 {[%clk 0:01:18.5]} 26...
Be7 {[%clk 0:00:20.6]} 27. Bxd8 {[%clk 0:00:54.5]} 27... Bxd8 {[%clk 0:00:18]}
28. Nxg7 {[%clk 0:00:37.6]} 28... Bg6 {[%clk 0:00:10.8]} 29. Be6+ {[%clk
0:00:34.9]} 29... Kc7 {[%clk 0:00:11.1]} 30. Bxc8 {[%clk 0:00:34.8]} 30... Kxc8
{[%clk 0:00:12]} 31. b4 {[%clk 0:00:34.7]} 31... Nd5 {[%clk 0:00:10.6]} 32. Re6
{[%clk 0:00:21.6]} 32... Bb1 {[%clk 0:00:08.3]} 33. Rxh6 {[%clk 0:00:18]} 33...
Bf6 {[%clk 0:00:07.9]} 34. Ne6 {[%clk 0:00:16.2]} 34... Bxc3 {[%clk 0:00:07.8]}
35. Rh5 {[%clk 0:00:14]} 35... Ba2 {[%clk 0:00:04.6]} 36. g4 {[%clk 0:00:07]}
36... Bxb4 {[%clk 0:00:04.5]} 37. Rh8+ {[%clk 0:00:05.1]} 37... Kd7 {[%clk
0:00:04.2]} 38. Nd4 {[%clk 0:00:04.3]} 38... Bxa5 {[%clk 0:00:04.1]} 39. Rh7+
{[%clk 0:00:04.1]} 39... Kd6 {[%clk 0:00:03.9]} 40. Nf5+ {[%clk 0:00:04.3]}
40... Ke5 {[%clk 0:00:03.6]} 41. Kf2 {[%clk 0:00:04.7]} 41... Bb6+ {[%clk
0:00:03.4]} 42. Kg3 {[%clk 0:00:04.9]} 42... a5 {[%clk 0:00:03.4]} 43. Rxb7
{[%clk 0:00:04.3]} 43... Bc7 {[%clk 0:00:03.1]} 44. f4+ {[%clk 0:00:04.3]} 44...
Ke4 {[%clk 0:00:02.9]} 45. Rxc7 {[%clk 0:00:02.6]} 45... Nxc7 {[%clk 0:00:02.9]}
46. h4 {[%clk 0:00:02.6]} 46... a4 {[%clk 0:00:03]} 47. h5 {[%clk 0:00:02.9]}
47... a3 {[%clk 0:00:02.8]} 48. Ne7 {[%clk 0:00:02.5]} 48... Ne6 {[%clk
0:00:02.3]} 49. h6 {[%clk 0:00:02.7]} 49... Nf8 {[%clk 0:00:02.4]} 50. f5 {[%clk
0:00:02.5]} 50... Bf7 {[%clk 0:00:01.6]} 51. g5 {[%clk 0:00:02.7]} 51... a2
{[%clk 0:00:02.1]} 52. g6 {[%clk 0:00:03.2]} 52... a1=Q {[%clk 0:00:02.7]} 53.
h7 {[%clk 0:00:01.9]} 53... Qc3+ {[%clk 0:00:03.2]} 54. Kh4 {[%clk 0:00:01.5]}
54... Qe1+ {[%clk 0:00:03.2]} 55. Kg5 {[%clk 0:00:01.6]} 55... Qg3+ {[%clk
0:00:03.4]} 56. Kf6 {[%clk 0:00:01.8]} 56... Bxg6 {[%clk 0:00:04.3]} 57. fxg6
{[%clk 0:00:01.8]} 57... Qe5+ {[%clk 0:00:04.3]} 58. Kf7 {[%clk 0:00:02]} 58...
Ne6 {[%clk 0:00:04.9]} 59. g7 {[%clk 0:00:01.6]} 59... Qxg7+ {[%clk 0:00:04.7]}
60. Kxe6 {[%clk 0:00:01.9]} 60... Qxh7 {[%clk 0:00:05.6]} 0-1